Workbook

Sheet random simulaties (hidden)
B1: vragen | C1: antwoordmogelijkheden | E1: algemene weging | F1: scoring/vraag | G1: scoring/ antwoord | H1: random test | I1: Gesimuleerd antwoord | J1: gewicht indiv antwoord tov totale score (meest doorslaggevende indiv antwoord aangegeven in rood) | L1: soort vraag | M1: gewicht | N1: Check-up klant | O1: resultaat klant | P1: 0.5 | Q1: maximum score | R1: antwoord klant
A2: A. Kennis en ervaring | B2: 1 kennis uit opleiding | C2: a | D2: nee | E2: minst doorslag-gevend | F2: =VLOOKUP(E2,$L$2:$M$6,2) -> 35 | G2: ='scoring vragenlijst'!G2 -> 0 | H2: =RANDBETWEEN(1,2) -> 1 | I2: =IF(H2=1,G2,IF(H2=2,G3,G5)) -> 0 | J2: =G2/$F$52 -> 0 | L2: het meest doorslaggevend | M2: ='scoring vragenlijst'!N2 -> 150 | N2: Kennis en ervaring | O2: =R2/$Q$2 -> 0.6176470588 | Q2: =SUM(Q3:Q5) -> 170 | R2: =SUM(R3:R5) -> 105
C3: b | D3: ja | G3: ='scoring vragenlijst'!G3 -> 35 | J3: 0.035 | L3: meer doorslaggevend | M3: ='scoring vragenlijst'!N3 -> 125 | N3: 1 kennis uit opleiding | O3: =R3/$Q$2 -> 0 | P3: 0.5 | Q3: =F2 -> 35 | R3: =I2 -> 0
B4: 2 beroeps-matige kennis | C4: a | D4: nee | E4: minst doorslag-gevend | F4: =VLOOKUP(E4,$L$2:$M$6,2) -> 35 | G4: ='scoring vragenlijst'!G4 -> 0 | H4: =RANDBETWEEN(1,2) -> 2 | I4: =IF(H4=1,G4,IF(H4=2,G5,G7)) -> 35 | J4: 0 | L4: midden | M4: ='scoring vragenlijst'!N4 -> 100 | N4: 2 beroepskennis | O4: =R4/$Q$2 -> 0.2058823529 | P4: 0.5 | Q4: =F4 -> 35 | R4: =I4 -> 35
C5: b | D5: ja | G5: ='scoring vragenlijst'!G5 -> 35 | J5: 0.035 | L5: minder | M5: ='scoring vragenlijst'!N5 -> 60 | N5: 3 interesse | O5: =R5/$Q$2 -> 0.4117647059 | P5: 0.5 | Q5: =F6 -> 100 | R5: =I6 -> 70
B6: 2 interesse | C6: a | D6: geen interesse | E6: midden | F6: =VLOOKUP(E6,$L$2:$M$6,2) -> 100 | G6: ='scoring vragenlijst'!G6 -> 0 | H6: =RANDBETWEEN(1,4) -> 3 | I6: =IF(H6=1,G6,IF(H6=2,G7,IF(H6=3,G8,G9))) -> 70 | J6: 0 | L6: minst doorslaggevend | M6: ='scoring vragenlijst'!N6 -> 35 | O6: =100%-SUM(O3:O5) -> 0.3823529412
C7: b | D7: lees financiële bladzijden | G7: ='scoring vragenlijst'!G7 -> 30 | J7: 0.03 | N7: Financiële situatie | O7: =R7/$Q$7 -> 0.25 | Q7: =SUM(Q8:Q11) -> 420 | R7: =SUM(R8:R11) -> 105
C8: c | D8: zoek actief financiële informatie | G8: ='scoring vragenlijst'!G8 -> 70 | J8: 0.07 | L8: totaal | M8: =F52 -> 1000 | N8: 4 roerend vermogen | O8: =R8/$Q$7 -> 0 | P8: 0.5 | Q8: =F20 -> 150 | R8: =I20 -> 0
C9: d | D9: volg financiële markt beroepsmatig | G9: ='scoring vragenlijst'!G9 -> 100 | J9: 0.1 | N9: 5 onroerend vermogen | O9: =R9/$Q$7 -> 0.1428571429 | P9: 0.5 | Q9: =F25 -> 60 | R9: =I25 -> 60
B10: 3 tabel producten | C10: producten die u kent | D10: T21 | E10: minder | F10: =VLOOKUP(E10,$L$2:$M$6,2) -> 60 | G10: ='scoring vragenlijst'!G10 -> 6 | H10: =RANDBETWEEN(1,60) -> 49 | I10: =EVEN(H10) -> 50 | J10: 0.006 | N10: 6a netto-inkomen | O10: =R10/$Q$7 -> 0 | P10: 0.5 | Q10: =F28 -> 60 | R10: =I28 -> 0
D11: T23 zonder kapitaalsbescherming | G11: ='scoring vragenlijst'!G11 -> 8 | J11: 0.008 | N11: 7 spaarmogelijkheid | O11: =R11/$Q$7 -> 0.1071428571 | P11: 0.5 | Q11: =F36 -> 150 | R11: =I36 -> 45
D12: T23 met kapitaalsbescherming | G12: ='scoring vragenlijst'!G12 -> 10 | J12: 0.01 | O12: =100%-(SUM(O8:O11)) -> 0.75
D13: T26 | G13: ='scoring vragenlijst'!G17 -> 6 | J13: 0.006 | N13: Risico-appetijt | O13: =R13/$Q$13 -> 0.5 | Q13: =SUM(Q14:Q17) -> 1000 | R13: =SUM(R14:R17) -> 500
C14: producten waarin u belegt of heeft belegd (zowel occasioneel als regelmatig) | D14: T21 | G14: ='scoring vragenlijst'!G18 -> 6 | J14: 0.006 | N14: 11 belegginsgsvoorkeur | O14: =R14/$Q$13 -> 0 | P14: 0.5 | Q14: =F58 -> 250 | R14: =I58 -> 0
D15: T23 zonder kapitaalsbescherming | G15: ='scoring vragenlijst'!G19 -> 8 | J15: 0.008 | N15: 12 reactie bij sterke daling beleggingen | O15: =R15/$Q$13 -> 0.165 | P15: 0.5 | Q15: =F62 -> 250 | R15: =I62 -> 165
D16: T23 met kapitaalsbescherming | G16: ='scoring vragenlijst'!G20 -> 10 | J16: 0.01 | N16: 13 welke schommeling waarde | O16: =R16/$Q$13 -> 0.085 | P16: 0.5 | Q16: =F66 -> 250 | R16: =I66 -> 85
D17: T26 | G17: ='scoring vragenlijst'!G25 -> 6 | J17: 0.006 | N17: 14 verlies opvangbaar | O17: =R17/$Q$13 -> 0.25 | P17: 0.5 | Q17: =F70 -> 250 | R17: =I70 -> 250
C18: kennis andere financiële producten | D18: vrij in te vullen door de klant | O18: =100%-SUM(O14:O17) -> 0.5
C19: beleggingen in andere financiële producten | D19: vrij in te vullen door de klant
A20: B. Financiële situatie | B20: 4 roerend vermogen | C20: a | D20: < €12,500 | E20: het meest doorslag-gevend | F20: =VLOOKUP(E20,$L$2:$M$6,2) -> 150 | G20: ='scoring vragenlijst'!G28 -> 0 | H20: =RANDBETWEEN(1,5) -> 1 | I20: =IF(H20=1,G20,IF(H20=2, G21,IF(H20=3,G22,IF(H20=4,G23,G24)))) -> 0 | J20: =G20/$F$52 -> 0
C21: b | D21: €12,500-€ 50,000 | G21: ='scoring vragenlijst'!G29 -> 37 | J21: 0.037 | O21: voorkeur klant | Q21: veiligheid | R21: rendement
C22: c | D22: €50,000- €125,000 | G22: ='scoring vragenlijst'!G30 -> 75 | J22: 0.075 | N22: veiligheid vs rendement | O22: =I58 -> 0 | Q22: =G58 -> 0 | R22: =G61 -> 250 | S22: =R22-O22 -> 250
C23: d | D23: €125,000-250,000 | G23: ='scoring vragenlijst'!G31 -> 112 | J23: 0.112
C24: e | D24: >€ 250,000 | G24: ='scoring vragenlijst'!G32 -> 150 | J24: 0.15
B25: 5 onroerend vermogen | C25: a | D25: nee | E25: minder | F25: =VLOOKUP(E25,$L$2:$M$6,2) -> 60 | G25: ='scoring vragenlijst'!G33 -> 0 | H25: =RANDBETWEEN(1,3) -> 1 | I25: =IF(H25=3,G25,IF(H25=4,G26,G27)) -> 60 | J25: 0 | N25: Beleggingshorizon | O25: =IF(I48=G48,3,IF(I48=G49,8,IF(I48=G50,16,40))) -> 16
C26: b | D26: ja, vastgoed voor eigen gebruik | G26: ='scoring vragenlijst'!G34 -> 30 | J26: =G26/$F$52 -> 0.03
C27: c | D27: ja, meerdere onroerende goederen | G27: ='scoring vragenlijst'!G35 -> 60 | J27: 0.06
B28: 6 a inkomen | C28: a | D28: <€1,500 | E28: minder | F28: =VLOOKUP(E28,$L$2:$M$6,2) -> 60 | G28: ='scoring vragenlijst'!G36 -> 0 | H28: =RANDBETWEEN(1,4) -> 1 | I28: =IF(H28=1,G28,IF(H28=2,G29,IF(H28=3,G30,G31))) -> 0 | J28: 0
C29: b | D29: €1,500- €3,000 | G29: ='scoring vragenlijst'!G37 -> 20 | J29: 0.02
C30: c | D30: €3,000- €5,000 | G30: ='scoring vragenlijst'!G38 -> 40 | J30: 0.04
C31: d | D31: >€5,000 | G31: ='scoring vragenlijst'!G39 -> 60 | J31: 0.06
B32: 6 b inkomen_ maandelijkse lasten | C32: a | D32: <€750
C33: b | D33: €750-€1500
C34: c | D34: €1500-€2500
C35: d | D35: >€2500
B36: 7 spaar-mogelijkheid | C36: a | D36: <€250 | E36: het meest doorslag-gevend | F36: =VLOOKUP(E36,$L$2:$M$6,2) -> 150 | G36: ='scoring vragenlijst'!G44 -> 0 | H36: =RANDBETWEEN(1,4) -> 2 | I36: =IF(H36=1,G36,IF(H36=2,G37,IF(H36=3,G38,G39))) -> 45 | J36: 0
C37: b | D37: €250- €500 | G37: ='scoring vragenlijst'!G45 -> 45 | J37: 0.045
C38: c | D38: €500- €1000 | G38: ='scoring vragenlijst'!G46 -> 105 | J38: 0.105
C39: d | D39: >€1000 | G39: ='scoring vragenlijst'!G47 -> 150 | J39: 0.15
B40: 8 evolutie financiële situatie | C40: a | D40: ja, negatief | E40: midden | F40: 100 | G40: ='scoring vragenlijst'!G48 -> 0 | H40: =RANDBETWEEN(1,3) -> 3 | I40: =IF(H40=1,G40,IF(H40=2,G41,G42)) -> 100 | J40: 0
C41: b | D41: neen | G41: ='scoring vragenlijst'!G49 -> 50 | J41: 0.05 | L41: =I40 -> 100
C42: c | D42: ja, positief | G42: ='scoring vragenlijst'!G50 -> 100 | J42: 0.1
A43: C. Doelstellingen | B43: 9 belangrijkste doelstelling | C43: a | D43: specifieke uitgave id toekomst | E43: meer doorslag-gevend | F43: =VLOOKUP(E43,$L$2:$M$6,2) -> 125 | G43: ='scoring vragenlijst'!G51 -> 0 | H43: =RANDBETWEEN(1,5) -> 2 | I43: =IF(H43=1,G43,IF(H43=2,G44,IF(H43=3,G45,IF(H43=4,G46,G47)))) -> 87 | J43: 0
C44: b | D44: algemene vermogensgroei | G44: ='scoring vragenlijst'!G52 -> 87 | J44: 0.087
C45: c | D45: inspelen op beursontwikkeling | G45: ='scoring vragenlijst'!G53 -> 125 | J45: 0.125 | L45: =I43 -> 87
C46: d | D46: extra maandelijks inkomen | G46: ='scoring vragenlijst'!G54 -> 19 | J46: 0.019
C47: e | D47: aanvulling toekomstig inkomen | G47: ='scoring vragenlijst'!G55 -> 37 | J47: 0.037
B48: 10 termijn | C48: a | D48: < 3jaar | E48: meer doorslag-gevend | F48: =VLOOKUP(E48,$L$2:$M$6,2) -> 125 | G48: ='scoring vragenlijst'!G56 -> 0 | H48: =RANDBETWEEN(1,4) -> 3 | I48: =IF(H48=1,G48,IF(H48=2,G49,IF(H48=3,G50,G51))) -> 87 | J48: 0
C49: b | D49: 3 jaar - 8 jaar | G49: ='scoring vragenlijst'!G57 -> 37 | J49: 0.037 | L49: =I48 -> 87
C50: c | D50: 8 jaar-16 jaar | G50: ='scoring vragenlijst'!G58 -> 87 | J50: 0.087
C51: d | D51: > 16 jaar | G51: ='scoring vragenlijst'!G59 -> 125 | J51: 0.125
E52: TOTAAL | F52: =SUM(F2:F51) -> 1000 | I52: =SUM(I2:I51) -> 534
D54: Beleggersprofieltype | F54: =VLOOKUP(I52,'scoring vragenlijst'!$E$65:$G$68,3) -> c. équilibré | G54: =VLOOKUP(I52,'scoring vragenlijst'!$E$65:$H$68,4) -> 3
B57: vragen | C57: antwoordmogelijkheden | E57: algemene weging | F57: scoring/vraag | G57: scoring/ antwoord | H57: random test | I57: Gesimuleerd antwoord | J57: gewicht indiv antwoord tov totale score
A58: Risicoappetijt | B58: 11 | C58: a | D58: kapitaalbehoud is belangrijkste | E58: doorslag-gevend | F58: =VLOOKUP(E58,$L$66:$M$66,2) -> 250 | G58: ='scoring vragenlijst'!G72 -> 0 | H58: =RANDBETWEEN(1,4) -> 1 | I58: =IF(H58=1,G58,IF(H58=2,G59,IF(H58=3,G60,G61))) -> 0 | J58: =G58/$F$74 -> 0
B59: belegginsgs-voorkeur | C59: b | D59: grootste deel veilig beleggen | G59: ='scoring vragenlijst'!G73 -> 85 | J59: =G59/$F$74 -> 0.085
C60: c | D60: enig risico -hoger rendement | G60: ='scoring vragenlijst'!G74 -> 165 | J60: 0.165
C61: d | D61: zo hoog mogelijk rendement | G61: ='scoring vragenlijst'!G75 -> 250 | J61: 0.25
B62: 12 | C62: a | D62: opportuniteit om bij te kopen | E62: doorslag-gevend | F62: =VLOOKUP(E62,$L$66:$M$66,2) -> 250 | G62: 250 | H62: =RANDBETWEEN(1,4) -> 2 | I62: =IF(H62=1,G62,IF(H62=2,G63,IF(H62=3,G64,G65))) -> 165 | J62: 0.25
B63: reactie bij sterke daling beleggingen | C63: b | D63: evolutie opvolgen | G63: 165 | J63: 0.165
C64: c | D64: overweeg verkoop | G64: 85 | J64: 0.085
C65: d | D65: niet slapen | G65: 0 | J65: 0 | L65: soort vraag | M65: gewicht
B66: 13 | C66: a | D66: ik reageer niet | E66: doorslag-gevend | F66: =VLOOKUP(E66,$L$66:$M$66,2) -> 250 | G66: ='scoring vragenlijst'!G80 -> 250 | H66: =RANDBETWEEN(1,4) -> 3 | I66: =IF(H66=1,G66,IF(H66=2,G67,IF(H66=3,G68,G69))) -> 85 | J66: 0.25 | L66: doorslaggevend | M66: ='scoring vragenlijst'!N77 -> 250
B67: welke schommeling waarde | C67: b | D67: matig | G67: ='scoring vragenlijst'!G81 -> 165 | J67: 0.165
C68: c | D68: sterk | G68: ='scoring vragenlijst'!G82 -> 85 | J68: 0.085
C69: d | D69: zeer sterk | G69: ='scoring vragenlijst'!G83 -> 0 | J69: 0
B70: 14 | C70: a | D70: erg moeilijk | E70: doorslag-gevend | F70: =VLOOKUP(E70,$L$66:$M$66,2) -> 250 | G70: ='scoring vragenlijst'!G84 -> 0 | H70: =RANDBETWEEN(1,4) -> 4 | I70: =IF(H70=1,G70,IF(H70=2,G71,IF(H70=3,G72,G73))) -> 250 | J70: 0
B71: verlies opvangbaar | C71: b | D71: uitgaven aanpassen | G71: ='scoring vragenlijst'!G85 -> 85 | J71: 0.085
C72: c | D72: compenseren | G72: ='scoring vragenlijst'!G86 -> 165 | J72: 0.165
C73: d | D73: geen probleem | G73: ='scoring vragenlijst'!G87 -> 250 | J73: 0.25
E74: TOTAAL | F74: =SUM(F58:F73) -> 1000 | I74: =SUM(I58:I72) -> 500
D76: Beleggersprofieltype | F76: =VLOOKUP(I74,'scoring vragenlijst'!$E$65:$G$68,3) -> b. neutre | G76: =VLOOKUP(I74,'scoring vragenlijst'!$E$65:$H$68,4) -> 2
D78: FINALE BELEGGERSTYPE | F78: =IF(G54<G76,F54,F76) -> b. neutre

Sheet scoring vragenlijst (hidden)
B1: vragen | C1: antwoordmogelijkheden | E1: algemene weging | F1: scoring/vraag | G1: scoring/ antwoord | H1: max score | I1: min score | J1: gewicht indiv antwoord tov totale score (meest doorslaggevende indiv antwoord aangegeven in rood) | M1: soort vraag | N1: gewicht
A2: A. Kennis en ervaring | B2: 1 kennis uit opleiding | C2: a | D2: nee | E2: minst doorslag-gevend | F2: =VLOOKUP(E2,$M$2:$N$6,2) -> 35 | G2: 0 | J2: =G2/$F$60 -> 0 | M2: het meest doorslaggevend | N2: 150
C3: b | D3: ja | G3: =F2 -> 35 | H3: =MAX(G2:G3) -> 35 | J3: 0.035 | M3: meer doorslaggevend | N3: 125
B4: 2 beroeps-matige kennis | C4: a | D4: nee | E4: minst doorslag-gevend | F4: =VLOOKUP(E2,$M$2:$N$6,2) -> 35 | G4: 0 | I4: =MIN(G2:G5) -> 0 | J4: 0 | M4: midden | N4: 100
C5: b | D5: ja | G5: =F4 -> 35 | H5: =MAX(G4:G5) -> 35 | J5: 0.035 | M5: minder | N5: 60
B6: 2 interesse | C6: a | D6: geen interesse | E6: midden | F6: =VLOOKUP(E6,$M$2:$N$6,2) -> 100 | G6: 0 | J6: 0 | M6: minst doorslaggevend | N6: 35
C7: b | D7: lees financiële bladzijden | G7: 30 | J7: 0.03
C8: c | D8: zoek actief financiële informatie | G8: 70 | J8: 0.07 | M8: totaal | N8: =F60 -> 1000
C9: d | D9: volg financiële markt beroepsmatig | G9: 100 | H9: =MAX(G6:G9) -> 100 | I9: =MIN(G6:G9) -> 0 | J9: 0.1
B10: 3 tabel producten | C10: producten die u kent | D10: T21 | E10: minder | F10: =VLOOKUP(E10,$M$2:$N$6,2) -> 60 | G10: 6 | J10: 0.006
D11: T23 zonder kapitaalsbescherming | G11: 8 | J11: 0.008
D12: T23 met kapitaalsbescherming | G12: 10 | J12: 0.01
D13: onderliggende activa T23:
D14: aandelen
D15: obligaties en andere vastrentende producten
D16: andere (te preciseren)
D17: T26 | G17: 6 | J17: 0.006
C18: producten waarin occasioneel of regelmatig belegd | D18: T21 | G18: 6 | J18: 0.006
D19: T23 zonder kapitaalsbescherming | G19: 8 | J19: 0.008
D20: T23 met kapitaalsbescherming | G20: 10 | J20: 0.01
D21: onderliggende activa T23:
D22: aandelen
D23: obligaties en andere vastrentende producten
D24: andere (te preciseren)
D25: T26 | G25: 6 | H25: =SUM(G10:G25) -> 60 | J25: 0.006
C26: kennis andere financiële producten | D26: vrij in te vullen door de klant
C27: beleggingen in andere financiële producten | D27: vrij in te vullen door de klant
A28: B. Financiële situatie | B28: 4 roerend vermogen | C28: a | D28: < €12,500 | E28: het meest doorslag-gevend | F28: =VLOOKUP(E28,$M$2:$N$6,2) -> 150 | G28: 0 | J28: =G28/$F$60 -> 0
C29: b | D29: €12,500-€ 50,000 | G29: 37 | J29: 0.037
C30: c | D30: €50,000- €125,000 | G30: 75 | J30: 0.075
C31: d | D31: €125,000-250,000 | G31: 112 | J31: 0.112
C32: e | D32: >€ 250,000 | G32: 150 | H32: =MAX(G28:G32) -> 150 | I32: =MIN(G28:G32) -> 0 | J32: 0.15
B33: 5 onroerend vermogen | C33: a | D33: nee | E33: minder | F33: =VLOOKUP(E33,$M$2:$N$6,2) -> 60 | G33: 0 | J33: 0
C34: b | D34: ja, vastgoed voor eigen gebruik | G34: 30 | J34: 0.03
C35: c | D35: ja, meerdere onroerende goederen | G35: 60 | H35: =MAX(G33:G35) -> 60 | I35: =MIN(G33:G35) -> 0 | J35: 0.06
B36: 6 inkomen_ netto-inkomen | C36: a | D36: <€1,500 | E36: minder | F36: =VLOOKUP(E36,$M$2:$N$6,2) -> 60 | G36: 0 | J36: 0
C37: b | D37: €1,500- €3,000 | G37: 20 | J37: 0.02
C38: c | D38: €3,000- €5,000 | G38: 40 | J38: 0.04
C39: d | D39: >€5,000 | G39: 60 | H39: =MAX(G36:G39) -> 60 | I39: =MIN(G36:G39) -> 0 | J39: 0.06
B40: 6 inkomen_ maandelijkse lasten | C40: a | D40: <€750
C41: b | D41: €750-€1500
C42: c | D42: €1500-€2500
C43: d | D43: >€2500
B44: 7 spaar-mogelijkheid | C44: a | D44: <€250 | E44: het meest doorslag-gevend | F44: =VLOOKUP(E44,$M$2:$N$6,2) -> 150 | G44: 0 | J44: =G44/$F$60 -> 0
C45: b | D45: €250- €500 | G45: 45 | J45: 0.045
C46: c | D46: €500- €1000 | G46: 105 | J46: 0.105
C47: d | D47: >€1000 | G47: 150 | H47: =MAX(G44:G47) -> 150 | I47: =MIN(G44:G47) -> 0 | J47: 0.15
B48: 8 evolutie financiële situatie | C48: b | D48: ja, negatief | E48: midden | F48: 100 | G48: 0 | J48: 0
C49: c | D49: neen | G49: 50 | J49: 0.05
C50: d | D50: ja, positief | G50: 100 | H50: =MAX(G48:G50) -> 100 | I50: =MIN(G48:G50) -> 0 | J50: 0.1
A51: C. Doelstellingen | B51: 9 belangrijkste doelstelling | C51: a | D51: specifieke uitgave id toekomst | E51: meer doorslag-gevend | F51: =VLOOKUP(E51,$M$2:$N$6,2) -> 125 | G51: 0 | J51: 0
C52: b | D52: algemene vermogensgroei | G52: 87 | J52: 0.087
C53: c | D53: inspelen op beursontwikkeling | G53: 125 | J53: 0.125
C54: d | D54: extra maandelijks inkomen | G54: 19 | J54: 0.019
C55: e | D55: aanvulling toekomstig inkomen | G55: 37 | H55: =MAX(G51:G55) -> 125 | I55: =MIN(G51:G55) -> 0 | J55: 0.037
B56: 10 termijn | C56: a | D56: < 3jaar | E56: meer doorslag-gevend | F56: =VLOOKUP(E56,$M$2:$N$6,2) -> 125 | G56: 0 | J56: 0
C57: b | D57: 3 jaar - 8 jaar | G57: 37 | J57: 0.037
C58: c | D58: 8 jaar-16 jaar | G58: 87 | J58: 0.087
C59: d | D59: > 16 jaar | G59: 125 | H59: =MAX(G56:G59) -> 125 | I59: =MIN(G56:G59) -> 0 | J59: 0.125
E60: TOTAAL | F60: =SUM(F2:F59) -> 1000 | H60: =SUM(H3:H59) -> 1000 | I60: =SUM(I2:I59) -> 0
D61: Range van scores (Max-min score): | F61: =H60-I60 -> 1000
D62: bij 4 profieltypes: range/type | F62: =F61/4 -> 250
D64: profieltypes | E64: min score | F64: max score | I64: Profielbeschrijving
D65: a. defensief | E65: =$I$60 -> 0 | F65: =$E$65+$F$62 -> 250 | G65: a. défensif | H65: 1 | I65: Veiligheid is uw prioriteit; U hecht veel belang aan kapitaalbescherming, zelfs als dit ten koste gaat van rendement; U heeft algemeen de voorkeur voor sparen en beleggen met weinig schommelingen en een stabiel maar bescheiden rendement.
D66: b. neutraal | E66: =$F$65+1 -> 251 | F66: =$E$66+$F$62-1 -> 500 | G66: b. neutre | H66: 2 | I66: U geeft de voorkeur aan aangroei van het vermogen zonder daarbij blootgesteld te worden aan een al te hoog risico op waardedaling; U bent bereid enig risico te nemen om het rendement te verhogen, maar slechts in beperkte mate; Voor het grootste deel van uw vermogen streeft u naar sparen en beleggen met weinig schommelingen en een stabiel rendement.
D67: c. evenwichtig | E67: =$F$66+1 -> 501 | F67: =$E$67+$F$62-1 -> 750 | G67: c. équilibré | H67: 3 | I67: Rendement en beperking van het risico zijn allebei belangrijk; U vindt het aanvaardbaar om risico te nemen om een potentieel hoger rendement te behalen; U heeft evenwel geen bereidheid om uitgesproken risico’s te nemen waardoor uw spaartegoed of belegging sterk in waarde zou kunnen dalen.
D68: d. dynamisch | E68: =$F$67+1 -> 751 | F68: =$E$68+$F$62-1 -> 1000 | G68: d. dynamique | H68: 4 | I68: Uw doelstelling is de groei van uw vermogen op lange termijn; U vindt een zo hoog mogelijk potentieel rendement belangrijk, wetende dat daaraan risico's verbonden zijn; U aanvaardt sterke opwaartse en neerwaartse schommelingen in de waarde van de spaar- en beleggingsverzekeringen, bijvoorbeeld ten gevolge van koersschommelingen of wisselrisico’s.
B71: vragen | C71: antwoordmogelijkheden | E71: algemene weging | F71: scoring/vraag | G71: scoring/ antwoord | H71: max score | I71: min score | J71: gewicht indiv antwoord tov totale score
A72: Risicoappetijt | B72: 11 | C72: a | D72: kapitaalbehoud is belangrijkste | E72: doorslag-gevend | F72: =VLOOKUP(E72,$M$77:$N$77,2) -> 250 | G72: 0 | J72: =G72/$F$88 -> 0
B73: belegginsgs-voorkeur | C73: b | D73: grootste deel veilig beleggen | G73: 85 | J73: =G73/$F$88 -> 0.085
C74: c | D74: enig risico -hoger rendement | G74: 165 | J74: 0.165
C75: d | D75: zo hoog mogelijk rendement | G75: 250 | H75: =MAX(G72:G75) -> 250 | I75: =MIN(G72:G75) -> 0 | J75: 0.25
B76: 12 | C76: a | D76: opportuniteit om bij te kopen | E76: doorslag-gevend | F76: =VLOOKUP(E76,$M$77:$N$77,2) -> 250 | G76: 250 | J76: 0.25 | M76: soort vraag | N76: gewicht
B77: reactie bij sterke daling beleggingen | C77: b | D77: evolutie opvolgen | G77: 165 | J77: 0.165 | M77: doorslaggevend | N77: 250
C78: c | D78: overweeg verkoop | G78: 85 | J78: 0.085
C79: d | D79: niet slapen | G79: 0 | H79: =MAX(G76:G79) -> 250 | I79: =MIN(G76:G79) -> 0 | J79: 0
B80: 13 | C80: a | D80: ik reageer niet | E80: doorslag-gevend | F80: =VLOOKUP(E80,$M$77:$N$77,2) -> 250 | G80: 250 | J80: 0.25
B81: welke schommeling waarde | C81: b | D81: matig | G81: 165 | J81: 0.165
C82: c | D82: sterk | G82: 85 | J82: 0.085
C83: d | D83: zeer sterk | G83: 0 | H83: =MAX(G80:G83) -> 250 | I83: =MIN(G80:G83) -> 0 | J83: 0
B84: 14 | C84: a | D84: erg moeilijk | E84: doorslag-gevend | F84: =VLOOKUP(E84,$M$77:$N$77,2) -> 250 | G84: 0 | J84: 0
B85: verlies opvangbaar | C85: b | D85: uitgaven aanpassen | G85: 85 | J85: 0.085
C86: c | D86: compenseren | G86: 165 | J86: 0.165
C87: d | D87: geen probleem | G87: 250 | H87: =MAX(G84:G87) -> 250 | I87: =MIN(G84:G87) -> 0 | J87: 0.25
E88: TOTAAL | F88: =SUM(F72:F87) -> 1000 | H88: =SUM(H72:H87) -> 1000 | I88: =SUM(I72:I87) -> 0

Sheet simulation
B1: identification du client | D1: nom
D2: prénom
D3: date de naissance
D4: référence
B6: date
B8: questions | C8: possibilités | E8: algemene weging | F8: scoring/vraag | G8: scoring/ antwoord | H8: choix/réponse | I8: score antwoord | K8: soort vraag | L8: gewicht | N8: Check-up klant | O8: resultaat klant | P8: 0.5 | Q8: maximum score | R8: antwoord klant
A9: A. Connaissances et expérience | B9: 1 formation et connaissance | C9: a | D9: non | E9: minst doorslag-gevend | F9: =VLOOKUP(E9,$K$9:$L$13,2) -> 35 | G9: ='scoring vragenlijst'!G2 -> 0 | I9: =IF(H9="x",G9,IF(H10="X",G10,"nog in te vullen")) -> nog in te vullen | K9: het meest doorslaggevend | L9: ='scoring vragenlijst'!N2 -> 150 | N9: Kennis en ervaring | O9: =R9/$Q$9 -> 0 | Q9: =SUM(Q10:Q12) -> 170 | R9: =SUM(R10:R12) -> 0
C10: b | D10: oui | G10: ='scoring vragenlijst'!G3 -> 35 | K10: meer doorslaggevend | L10: ='scoring vragenlijst'!N3 -> 125 | N10: 1 kennis uit opleiding | O10: =R10/$Q$9 ->  | P10: 0.5 | Q10: =F9 -> 35 | R10: =I9 -> nog in te vullen | S10: Tuyau
B11: 2 profession et connaissance | C11: a | D11: non | E11: minst doorslag-gevend | F11: =VLOOKUP(E11,$K$9:$L$13,2) -> 35 | G11: ='scoring vragenlijst'!G4 -> 0 | I11: =IF(H11="x",G11,IF(H12="X",G12,"nog in te vullen")) -> nog in te vullen | K11: midden | L11: ='scoring vragenlijst'!N4 -> 100 | N11: 2 beroepskennis | O11: =R11/$Q$9 ->  | P11: 0.5 | Q11: =F11 -> 35 | R11: =I11 -> nog in te vullen | S11: Utilisez le bouton pour naviguer entre les zones de réponse.
C12: b | D12: oui | G12: ='scoring vragenlijst'!G5 -> 35 | K12: minder | L12: ='scoring vragenlijst'!N5 -> 60 | N12: 3 interesse | O12: =R12/$Q$9 ->  | P12: 0.5 | Q12: =F13 -> 100 | R12: =I13 -> nog in te vullen
B13: 3 intérêt | C13: a | D13: pas intéressé | E13: midden | F13: =VLOOKUP(E13,$K$9:$L$13,2) -> 100 | G13: ='scoring vragenlijst'!G6 -> 0 | I13: =IF(H13="x",G13,IF(H14="x",G14,IF(H15="x",G15,IF(H16="x",G16,"nog in te vullen")))) -> nog in te vullen | K13: minst doorslaggevend | L13: ='scoring vragenlijst'!N6 -> 35 | O13: =100%-SUM(O10:O12) -> 
C14: b | D14: lire les pages financières | G14: ='scoring vragenlijst'!G7 -> 30 | N14: Financiële situatie | O14: =R14/$Q$14 -> 0 | Q14: =SUM(Q15:Q18) -> 420 | R14: =SUM(R15:R18) -> 0
C15: c | D15: recherche des informations financières | G15: ='scoring vragenlijst'!G8 -> 70 | K15: totaal | L15: =F67 -> 1000 | N15: 4 roerend vermogen | O15: =R15/$Q$14 ->  | P15: 0.5 | Q15: =F35 -> 150 | R15: =I35 -> nog in te vullen
C16: d | D16: suivre les marchés fianciers dans les activités professionnelles | G16: ='scoring vragenlijst'!G9 -> 100 | N16: 5 onroerend vermogen | O16: =R16/$Q$14 ->  | P16: 0.5 | Q16: =F40 -> 60 | R16: =I40 -> nog in te vullen
B17: 3 table produits | C17: les produits que vous connaissez | D17: branche 21 | E17: minder | F17: =VLOOKUP(E17,$K$9:$L$13,2) -> 60 | G17: ='scoring vragenlijst'!G10 -> 6 | I17: =(IF(H17="x",G17,0)+(IF(H18="x",G18,0))+(IF(H19="x",G19,0))+(IF(H24="x",G24,0))+(IF(H25="x",G25,0))+(IF(H26="x",G26,0))+(IF(H27="x",G27,0))+(IF(H32="x",G32,0))) -> 0 | N17: 6a netto-inkomen | O17: =R17/$Q$14 ->  | P17: 0.5 | Q17: =F43 -> 60 | R17: =I43 -> nog in te vullen
D18: branche 23 sans capital garanti | G18: ='scoring vragenlijst'!G11 -> 8 | N18: 7 spaarmogelijkheid | O18: =R18/$Q$14 ->  | P18: 0.5 | Q18: =F51 -> 150 | R18: =I51 -> nog in te vullen
D19: branche 23 avec capital garanti | G19: ='scoring vragenlijst'!G12 -> 10 | O19: =100%-(SUM(O15:O18)) -> 
D20: les actifs sous-jacents branche 23:
D21: actions
D22: obligations et autre produits à rendement fixe
D23: autre | H23: (à préciser) | J23: =NOT(H23="(te preciseren)") -> TRUE
D24: branche 26 | G24: ='scoring vragenlijst'!G17 -> 6 | N24: Risico-appetijt | O24: =R24/$Q$24 -> 0 | Q24: =SUM(Q25:Q32) -> 1000 | R24: =SUM(R25:R32) -> 0
C25: les produits dans lesquels vous investissez à l'heure actuelle | D25: branche 21 | G25: ='scoring vragenlijst'!G18 -> 6 | N25: 11 belegginsgsvoorkeur | O25: =R25/$Q$24 ->  | P25: 0.5 | Q25: =F73 -> 250 | R25: =I73 -> nog in te vullen
D26: branche 23 sans capital garanti | G26: ='scoring vragenlijst'!G19 -> 8 | N26: 12 reactie bij sterke daling beleggingen | O26: =R26/$Q$24 ->  | P26: 0.5 | Q26: =F77 -> 250 | R26: =I77 -> nog in te vullen
D27: branche 23 avec capital garanti | G27: ='scoring vragenlijst'!G20 -> 10 | N27: 13 welke schommeling waarde | O27: =R27/$Q$24 ->  | P27: 0.5 | Q27: =F81 -> 250 | R27: =I81 -> nog in te vullen
D28: les actifs sous-jacents branche 23:
D29: actions
D30: obligations et autre produits à rendement fixe
D31: autre | H31: (à préciser) | J31: =NOT(H31="(te preciseren)") -> TRUE
D32: branche 26 | G32: ='scoring vragenlijst'!G25 -> 6 | N32: 14 verlies opvangbaar | O32: =R32/$Q$24 ->  | P32: 0.5 | Q32: =F85 -> 250 | R32: =I85 -> nog in te vullen
C33: connaissances en d'autres produits financiers | H33: (à préciser) | O33: =100%-SUM(O25:O32) -> 
C34: vos investissements dans les autres produits financiers | H34: (à préciser) | N34: Beleggingshorizon | O34: =IF(H63="X",3,IF(H64="x",8,IF(H65="x",16,24))) -> 24
A35: B. Situation financière | B35: 4 patrimoine - biens mobiliers | C35: a | D35: < €12,500 | E35: het meest doorslag-gevend | F35: =VLOOKUP(E35,$K$9:$L$13,2) -> 150 | G35: ='scoring vragenlijst'!G28 -> 0 | I35: =IF(H35="x",G35,IF(H36="x",G36,IF(H37="x",G37,IF(H38="x",G38,IF(H39="x",G39,"nog in te vullen"))))) -> nog in te vullen | O35: voorkeur klant | Q35: veiligheid | R35: rendement
C36: b | D36: €12,500-€ 50,000 | G36: ='scoring vragenlijst'!G29 -> 37 | N36: veiligheid vs rendement | O36: =IF(H73="x",G73,IF(H74="x",G74,IF(H75="x",G75,G76))) -> 250 | Q36: =G73 -> 0 | R36: =G76 -> 250 | S36: =R36-O36 -> 0
C37: c | D37: €50,000- €125,000 | G37: ='scoring vragenlijst'!G30 -> 75
C38: d | D38: €125,000-250,000 | G38: ='scoring vragenlijst'!G31 -> 112
C39: e | D39: >€ 250,000 | G39: ='scoring vragenlijst'!G32 -> 150
B40: 5 patroimoine - biens immobiliers | C40: a | D40: non | E40: minder | F40: =VLOOKUP(E40,$K$9:$L$13,2) -> 60 | G40: ='scoring vragenlijst'!G33 -> 0 | I40: =IF(H40="x",G40,IF(H41="x",G41,IF(H42="x",G42,"nog in te vullen"))) -> nog in te vullen
C41: b | D41: oui, bien immobilier pour propre usage | G41: ='scoring vragenlijst'!G34 -> 30
C42: c | D42: oui, plusieurs biens immobiliers | G42: ='scoring vragenlijst'!G35 -> 60
B43: 6a revenus nets mensuels | C43: a | D43: <€1,500 | E43: minder | F43: =VLOOKUP(E43,$K$9:$L$13,2) -> 60 | G43: ='scoring vragenlijst'!G36 -> 0 | I43: =IF(H43="x",G43,IF(H44="x",G44,IF(H45="x",G45,IF(H46="x",G46,"nog in te vullen")))) -> nog in te vullen
C44: b | D44: €1,500- €3,000 | G44: ='scoring vragenlijst'!G37 -> 20 | J44: =IF(H43="x",1500,IF(H44="x",3000,IF(H45="x",5000,1000000000000))) -> 1000000000000
C45: c | D45: €3,000- €5,000 | G45: ='scoring vragenlijst'!G38 -> 40
C46: d | D46: >€5,000 | G46: ='scoring vragenlijst'!G39 -> 60
B47: 6b charges mensuelles | C47: a | D47: <€750
C48: b | D48: €750-€1500 | I48: =IF(J44-J48<J52,"inkomen onvoldoende",0) -> 0 | J48: =IF(H47="x",750,IF(H48="x",1500,IF(H49="x",2500,4000))) -> 4000
C49: c | D49: €1500-€2500
C50: d | D50: >€2500
B51: 7 capacité d'épargne | C51: a | D51: <€250 | E51: het meest doorslag-gevend | F51: =VLOOKUP(E51,$K$9:$L$13,2) -> 150 | G51: ='scoring vragenlijst'!G44 -> 0 | I51: =IF(H51="x",G51,IF(H52="x",G52,IF(H53="x",G53,IF(H54="x",G54,"nog in te vullen")))) -> nog in te vullen
C52: b | D52: €250- €500 | G52: ='scoring vragenlijst'!G45 -> 45 | J52: =IF(H51="x",250,IF(H52="x",500,IF(H53="x",1000,4000))) -> 4000
C53: c | D53: €500- €1000 | G53: ='scoring vragenlijst'!G46 -> 105
C54: d | D54: >€1000 | G54: ='scoring vragenlijst'!G47 -> 150
B55: 8 évolution situation financière | C55: a | D55: oui, négativement | E55: midden | F55: =VLOOKUP(E55,$K$9:$L$13,2) -> 100 | G55: ='scoring vragenlijst'!G48 -> 0 | I55: =IF(H55="x",G55,IF(H56="x",G56,IF(H57="x",G57,"nog in te vullen"))) -> nog in te vullen
C56: b | D56: non | G56: ='scoring vragenlijst'!G49 -> 50
C57: c | D57: oui, positivement | G57: ='scoring vragenlijst'!G50 -> 100
A58: C. Objectifs | B58: 9 objectif | C58: a | D58: dépense spécifique dans le futur | E58: meer doorslag-gevend | F58: =VLOOKUP(E58,$K$9:$L$13,2) -> 125 | G58: ='scoring vragenlijst'!G51 -> 0 | I58: =IF(H58="x",G58,IF(H59="x",G59,IF(H60="x",G60,IF(H61="x",G61,IF(H62="x",G62,"nog in te vullen"))))) -> nog in te vullen
C59: b | D59: faire fructifier un capital | G59: ='scoring vragenlijst'!G52 -> 87
C60: c | D60: anticiper les évolutions de la bourse | G60: ='scoring vragenlijst'!G53 -> 125
C61: d | D61: revenu mensuel en plus | G61: ='scoring vragenlijst'!G54 -> 19
C62: e | D62: complément au revenu futur | G62: ='scoring vragenlijst'!G55 -> 37
B63: 10 délai | C63: a | D63: < 3 ans | E63: meer doorslag-gevend | F63: =VLOOKUP(E63,$K$9:$L$13,2) -> 125 | G63: ='scoring vragenlijst'!G56 -> 0 | I63: =IF(H63="x",G63,IF(H64="x",G64,IF(H65="x",G65,IF(H66="x",G66,"nog in te vullen")))) -> nog in te vullen
C64: b | D64: 3 ans - 8 ans | G64: ='scoring vragenlijst'!G57 -> 37
C65: c | D65: 8 ans -16 ans | G65: ='scoring vragenlijst'!G58 -> 87
C66: d | D66: > 16 ans | G66: ='scoring vragenlijst'!G59 -> 125
E67: TOTAAL | F67: =SUM(F9:F66) -> 1000 | I67: =IF(COUNTIF(I9:I66,"nog in te vullen")>=1,"nog min 1 vraag te beantwoorden",(IF(I48="inkomen onvoldoende","inkomen onvoldoende",SUM(I9:I66)))) -> nog min 1 vraag te beantwoorden
B69: Beleggersprofieltype | D69: =IF(I67="nog min 1 vraag te beantwoorden","geen profielbepaling mogelijk",IF(I67="inkomen onvoldoende","geen profielbepaling mogelijk",VLOOKUP(I67,'scoring vragenlijst'!$E$65:$G$68,3))) -> geen profielbepaling mogelijk | G69: =VLOOKUP(I67,'scoring vragenlijst'!E65:H68,4) -> 
B72: questions | C72: possibilités | E72: algemene weging | F72: scoring/vraag | G72: scoring/ antwoord | H72: choix/réponse | I72: score antwoord
A73: Appétit pour le risque | B73: 11 | C73: a | D73: conservation du capital investi | E73: doorslag-gevend | F73: =VLOOKUP(E73,$K$78:$L$78,2) -> 250 | G73: ='scoring vragenlijst'!G72 -> 0 | I73: =IF(H73="x",G73,IF(H74="x",G74,IF(H75="x",G75,IF(H76="x",G76,"nog in te vullen")))) -> nog in te vullen
B74: préférence d'investir | C74: b | D74: investir sûr pour la majeure partie | G74: ='scoring vragenlijst'!G73 -> 85
C75: c | D75: un peu plus de risques - obtenir de rendement | G75: ='scoring vragenlijst'!G74 -> 165
C76: d | D76: un rendement aussi élevé que possible | G76: ='scoring vragenlijst'!G75 -> 250
B77: 12 | C77: a | D77: opportunité pour autres achats | E77: doorslag-gevend | F77: =VLOOKUP(E77,$K$78:$L$78,2) -> 250 | G77: ='scoring vragenlijst'!G76 -> 250 | I77: =IF(H77="x",G77,IF(H78="x",G78,IF(H79="x",G79,IF(H80="x",G80,"nog in te vullen")))) -> nog in te vullen | K77: soort vraag | L77: gewicht
B78: réaction en cas de valeur à la baisse | C78: b | D78: suivre leur évolution de près | G78: ='scoring vragenlijst'!G77 -> 165 | K78: doorslaggevend | L78: ='scoring vragenlijst'!N77 -> 250
C79: c | D79: envisage de me débarrasser | G79: ='scoring vragenlijst'!G78 -> 85
C80: d | D80: s'empêcher de dormir | G80: ='scoring vragenlijst'!G79 -> 0
B81: 13 | C81: a | D81: je ne réagis pas | E81: doorslag-gevend | F81: =VLOOKUP(E81,$K$78:$L$78,2) -> 250 | G81: ='scoring vragenlijst'!G80 -> 250 | I81: =IF(H81="x",G81,IF(H82="x",G82,IF(H83="x",G83,IF(H84="x",G84,"nog in te vullen")))) -> nog in te vullen
B82: réaction en cas de fluctuation | C82: b | D82: de façon modérée | G82: ='scoring vragenlijst'!G81 -> 165
C83: c | D83: de façon excessive | G83: ='scoring vragenlijst'!G82 -> 85
C84: d | D84: de façon très excessive | G84: ='scoring vragenlijst'!G83 -> 0
B85: 14 | C85: a | D85: avec de difficultés | E85: doorslag-gevend | F85: =VLOOKUP(E85,$K$78:$L$78,2) -> 250 | G85: ='scoring vragenlijst'!G84 -> 0 | I85: =IF(H85="x",G85,IF(H86="x",G86,IF(H87="x",G87,IF(H88="x",G88,"nog in te vullen")))) -> nog in te vullen
B86: réaction en cas de perte | C86: b | D86: réduire mes dépenses | G86: ='scoring vragenlijst'!G85 -> 85
C87: c | D87: compenser | G87: ='scoring vragenlijst'!G86 -> 165
C88: d | D88: aucun problème | G88: ='scoring vragenlijst'!G87 -> 250
E89: TOTAAL | F89: =SUM(F73:F88) -> 1000 | I89: =IF(COUNTIF(I73:I88,"nog in te vullen")>=1,"nog min 1 vraag te beantwoorden",SUM(I73:I88)) -> nog min 1 vraag te beantwoorden
B91: Beleggersprofieltype | D91: =IF(I89="nog min 1 vraag te beantwoorden", "geen profielbepaling mogelijk",VLOOKUP(I89,'scoring vragenlijst'!$E$65:$G$68,3)) -> geen profielbepaling mogelijk | G91: =VLOOKUP(I89,'scoring vragenlijst'!E65:H68,4) -> 
A93: TYPE D'INVESTISSEUR | D93: =IF(OR(D69="geen profielbepaling mogelijk",D91="geen profielbepaling mogelijk"),"profil ne peut être déterminé",IF(G69<G91,D69,D91)) -> profil ne peut être déterminé

Sheet analyse du client
B2: < logotype intermédaire >
B6: nom intermédaire
B7: adresse
B8: code postal + commune
L9: date | M9: =IF(simulation!H6="","",simulation!H6) -> 
L10: référence | M10: =IF(simulation!H4="","",simulation!H4) -> 
B11: Analyse du client
B12: nom | E12: =IF(simulation!H1="","",simulation!H1) -> 
B13: prénom | E13: =IF(simulation!H2="","",simulation!H2) -> 
B14: date de naissance | E14: =IF(simulation!H3="","",simulation!H3) -> 
B16: Vos connaissances et votre expérience | R16: a. defensief | S16: La sécurité est votre priorité ; vous attachez beaucoup d'importance à la protection du capital, même si c'est au détriment du rendement ; vous préférez d'une manière générale l'épargne et l'investissement avec peu de fluctuations et un rendement stable mais modeste.
R17: b. neutraal | S17: Vous donnez la préférence à une croissance du capital sans être exposé à un risque trop élevé de baisse de valeur ; vous êtes disposé à prendre quelques risques pour accroître le rendement, mais seulement dans une mesure limitée ; pour la majeure partie de vos avoirs, vous recherchez une épargne et un investissement avec peu de fluctuations et un rendement stable.
R18: c. evenwichtig | S18: Rendement et limitation du risque sont deux critères importants ; vous trouvez acceptable de prendre un risque afin d'obtenir un rendement potentiellement plus élevé ; vous n'êtes toutefois pas disposé à prendre des risques marqués qui pourraient entraîner une baisse de valeur considérable de votre épargne ou de votre investissement.
R19: d. dynamisch | S19: Votre objectif est la croissance de votre capital à long terme ; vous estimez important d'avoir un rendement potentiel le plus élevé possible, tout en sachant que cela ne va pas sans risque ; vous acceptez de fortes variations à la hausse et à la baisse de la valeur des assurances d'épargne et d'investissement, consécutives par exemple à des fluctuations de cours ou de risques de change.
B26: Connaissances générales en matière financière
B27: =IF(simulation!O9<0.33,"Vous avez peu de connaissances générales en matière financière.",IF(simulation!O9<0.66,"Vous avez assez bien de connaissances générales en matière financière.","Vous avez de larges connaissances générales en matière financière.")) -> Vous avez peu de connaissances générales en matière financière.
B28: Connaissance du produit
B29: =IF(OR(simulation!$H$17="x",simulation!$H$18="x",simulation!$H$19="x",simulation!$H$24="x"),"Vous connaissez les assurances d'épargne et d'investissement suivantes : ","Vous ne disposez pas de connaissances sur les assurances d'épargne et d'investissement.") -> Vous ne disposez pas de connaissances sur les assurances d'épargne et d'investissement. | G29: =IF(simulation!$H$17="x","assurances de la branche 21 "," ") -> 
G30: =IF(simulation!$H$18="x","assurances de la branche 23 sans protection du capital"," ") ->  | J30: =IF(OR(simulation!$H$21="x",simulation!$H$22="x",simulation!$J$23=TRUE),"investissant dans "," ") -> investissant dans | L30: =IF(simulation!$H$21="x","des actions"," ") -> 
G31: =IF(simulation!$H$19="x","assurances de la branche 23 avec protection du capital"," ") ->  | L31: =IF(simulation!$H$22="x","produits à revenu fixe"," ") -> 
G32: =IF(simulation!$H$24="x","opérations de capitalisation de la branche 26"," ") ->  | L32: =IF(simulation!$H$23="(te preciseren)"," ",simulation!$H$23) -> (à préciser)
B33: =IF(simulation!$H$33="(à préciser)"," ","Vous connaissez ces autres produits financiers:") ->  | G33: =IF(simulation!$H$33="(te preciseren)"," ",simulation!$H$33) -> (à préciser)
B34: Expérience du produit
B35: =IF(OR(simulation!$H$25="x",simulation!$H$26="x",simulation!$H$27="x",simulation!$H$32="x"),"Vous avez investi dans les assurances d'épargne et d'investissement suivantes :","Vous n'avez pas encore investi dans des assurances d'épargne et d'investissement.") -> Vous n'avez pas encore investi dans des assurances d'épargne et d'investissement. | G35: =IF(simulation!$H$25="x","assurances de la branche 21"," ") -> 
G36: =IF(simulation!$H$26="x","assurances de la branche 23 sans protection du capital"," ") ->  | J36: =IF(OR(simulation!$H$29="x",simulation!$H$30="x",simulation!$J$31=TRUE),"investissant dans"," ") -> investissant dans | L36: =IF(simulation!$H$29="x","des actions"," ") -> 
G37: =IF(simulation!$H$27="x","assurances de la branche 23 avec protection du capital"," ") ->  | L37: =IF(simulation!$H$30="x","produits à revenu fixe"," ") -> 
G38: =IF(simulation!$H$32="x","opérations de capitalisation de la branche 26"," ") ->  | L38: =IF(simulation!$H$31="(à préciser)"," ",simulation!$H$31) -> 
B39: =IF(simulation!$H$34="(à préciser)"," ","Vous avez investi dans ces autres produits financiers:") ->  | G39: =IF(simulation!$H$34="(à préciser)"," ",simulation!$H$34) -> 
B41: Précisions complémentaires
B42: Il convient ici de reprendre la motivation spécifique lorsqu'on s'écarte du score susmentionné ou que ce score est adapté.
B44: Votre situation financière
B57: Situation générale sur le plan financier
B58: =IF(simulation!O14<0.33,"Vous disposez de peu de moyens financiers à investir.",IF(simulation!O14<0.66,"Vous disposez assez bien de moyens financiers à investir.","Vous disposez de larges moyens financiers à investir.")) -> Vous disposez de peu de moyens financiers à investir.
B59: Vous prévoyez que votre situation financière dans le futur | G59: =IF(simulation!H55="x","évoluera dans le sens négatif.",IF(simulation!H56="x","n'évoluera pas.","évoluera dans le sens positif.")) -> évoluera dans le sens positif.
B60: Le montant à investir représente …….. | G60: pour cent du total de votre patrimoine mobilier.
B61: Précisions complémentaires
B62: Il convient ici de reprendre la motivation spécifique lorsqu'on estime nécessaire de fournir des précisions complémentaires sur la situation financière du client.
B64: Vos objectifs d'épargne et d'investissement
B74: Vos objectifs généraux
B75: Votre principal objectif d'épargne et/ou d'investissement est | G75: =IF(simulation!H58="x", "de chercher à constituer un montant (capital) pour une dépense spécifique dans le futur.",IF(simulation!H59="x","une croissance générale du capital.",IF(simulation!H60="x","d'anticiper les évolutions de la bourse.",IF(simulation!H61="x","un revenu (mensuel) pour compléter votre revenu actuel.","un complément à votre revenu futur (par exemple, une pension complémentaire).")))) -> un complément à votre revenu futur (par exemple, une pension complémentaire).
B76: Vous disposez à cette fin d'un horizon d'épargne ou d'investissement de | H76: =IF(simulation!H63="x", "maximum 3 ans.",IF(simulation!H64="x","maximum 8 ans.",IF(simulation!H65="x","maximum 16 ans.","plus de 16 ans."))) -> plus de 16 ans.
B77: Vos exigences/besoins spécifiques
B78: Vous souhaitez/ne souhaitez pas la (les) prestations(s) complémentaire(s) suivante(s): | I78: (biffer la mention inutile et/ou compléter au besoin)
B79: Précisions complémentaires
B80: Il convient ici de reprendre la motivation spécifique lorsqu'on s'écarte du score susmentionné ou que ce score est adapté.
B82: Votre tolérance au risque
B102: Tolérance au risque d'une manière générale
B103: =VLOOKUP(simulation!D93,R16:S19,2) -> Votre objectif est la croissance de votre capital à long terme ; vous estimez important d'avoir un rendement potentiel le plus élevé possible, tout en sachant que cela ne va pas sans risque ; vous acceptez de fortes variations à la hausse et à la baisse de la valeur des assurances d'épargne et d'investissement, consécutives par exemple à des fluctuations de cours ou de risques de change.
B104: Précisions complémentaires
B105: Il convient ici de reprendre la motivation spécifique lorsqu'on s'écarte du score susmentionné ou que ce score est adapté.
B108: fait à …………………………………………………., le …... / ...… / …………
B109: nom et signature du client

Sheet analyse klant obv rand. simul. (hidden)
B1: Analyse van de klant
B3: klantenprofiel | F3: ='random simulaties'!F78 -> b. neutre
B5: Kennis en ervaring van de klant
B15: Productkennis
B16: =IF(OR(simulation!$H$17="x",simulation!$H$18="x",simulation!$H$19="x",simulation!$H$24="x"),"de klant kent volgende spaar- en beleggingsverzekeringen:","de klant beschikt niet over kennis over spaar- en beleggingsverzekeringen") -> de klant beschikt niet over kennis over spaar- en beleggingsverzekeringen | I16: =IF('random simulaties'!$H$10="x","tak 21-verzekeringen"," ") -> 
I17: =IF('random simulaties'!$H$11="x","tak 23-verzekeringen zonder kapitaalsbescherming"," ") -> 
I18: =IF('random simulaties'!$H$12="x","tak 23-verzekeringen met kapitaalsbescherming"," ") -> 
I19: =IF('random simulaties'!$H$13="x","tak 26-kapitalisatieverrichtingen"," ") -> 
B20: de klant kent volgende andere financiële producten: | I20: =IF('random simulaties'!H18="nog in te vullen"," ",'random simulaties'!H18) -> 0
B21: Productervaring
B22: =IF(OR(simulation!$H$25="x",simulation!$H$26="x",simulation!$H$27="x",simulation!$H$32="x"),"de klant heeft belegd in volgende spaar- en beleggingsverzekeringen:","de klant heeft nog niet belegd in spaar- en beleggingsverzekeringen") -> de klant heeft nog niet belegd in spaar- en beleggingsverzekeringen | I22: =IF('random simulaties'!$H$14="x","tak 21-verzekeringen"," ") -> 
I23: =IF('random simulaties'!$H$15="x","tak 23-verzekeringen zonder kapitaalsbescherming"," ") -> 
I24: =IF('random simulaties'!$H$16="x","tak 23-verzekeringen met kapitaalsbescherming"," ") -> 
I25: =IF('random simulaties'!$H$17="x","tak 26-kapitalisatieverrichtingen"," ") -> 
B26: de klant heeft belegd in volgende andere financiële producten: | I26: =IF('random simulaties'!H19="nog in te vullen"," ",'random simulaties'!H19) -> 0
B28: Specifieke motivering
B29: Hier dient de specifieke motivering te worden ingevuld, wanneer wordt afgeweken van bovenstaande scoring of deze wordt aangepast.
B31: Financiële situatie van de klant
B46: Evolutie naar de toekomst
B47: De klant verwacht dat zijn financiële situatie in de toekomst | H47: =IF('random simulaties'!L41=0,"in negatieve zin zal wijzigen.",IF('random simulaties'!L41=50,"niet zal wijzigen.","in positieve zin zal wijzigen.")) -> in positieve zin zal wijzigen.
B48: Investering
B49: Het te investeren bedrag vertegenwoordigt | H49: percent van het totale roerend vermogen
B51: Algemene spaar- en beleggingsdoelstellingen van de klant
B52: De belangrijkste spaar- en/of beleggingsdoelstelling van de klant is | I52: =IF('random simulaties'!L45=0, "het streven naar een bedrag/vermogen voor een specifieke uitgave in de toekomst.",IF('random simulaties'!L45=87,"een algemene vermogensgroei.",IF('random simulaties'!L45=125,"inspelen op beursontwikkelingen.",IF('random simulaties'!L45=19,"een extra inkomen als aanvulling op zijn huidig inkomen.","een aanvulling op zijn toekomstig inkomen, bijvoorbeeld een aanvullend pensioen.")))) -> een algemene vermogensgroei.
B53: De klant heeft hiervoor een spaar- en/of beleggingshorizon van | I53: =IF('random simulaties'!L49=0, "ten hoogste 3 jaar.",IF('random simulaties'!L49=37,"ten hoogste 8 jaar.",IF('random simulaties'!L49=87,"ten hoogste 16 jaar.","meer dan 16 jaar"))) -> ten hoogste 16 jaar.
B60: Specifieke verlangens/behoeften van de klant (schrappen en/of aanvullen waar nodig)
B61: De klant wenst geen/volgende aanvullende uitkering/uitkeringen:
B63: Risicogevoeligheid van de klant
B82: Specifieke motivering
B83: Hier dient de specifieke motivering te worden ingevuld, wanneer wordt afgeweken van bovenstaande scoring of deze wordt aangepast.

Sheet analyse klant obv rand. sim (2 (hidden)
B1: Analyse van de klant
B3: Uw kennis en ervaring | R3: a. defensief | S3: Veiligheid is uw prioriteit; U hecht veel belang aan kapitaalbescherming, zelfs als dit ten koste gaat van rendement; U heeft algemeen de voorkeur voor sparen en beleggen met weinig schommelingen en een stabiel maar bescheiden rendement.
R4: b. neutraal | S4: U geeft de voorkeur aan aangroei van het vermogen zonder daarbij blootgesteld te worden aan een al te hoog risico op waardedaling; U bent bereid enig risico te nemen om het rendement te verhogen, maar slechts in beperkte mate; Voor het grootste deel van uw vermogen streeft u naar sparen en beleggen met weinig schommelingen en een stabiel rendement.
R5: c. evenwichtig | S5: Rendement en beperking van het risico zijn allebij belangrijk; U vindt het aanvaardbaar om risico te nemen om een potentieel hoger rendement te behalen; U heeft evenwel geen bereidheid om uitgesproken risico’s te nemen waardoor uw spaartegoed of belegging sterk in waarde zou kunnen dalen.
R6: d. dynamisch | S6: Uw doelstelling is de groei van uw vermogen op lange termijn; U vindt een zo hoog mogelijk potentieel rendement belangrijk, wetende dat daaraan risico's verbonden zijn; U aanvaardt sterke opwaartse en neerwaartse schommelingen in de waarde van de spaar- en beleggingsverzekeringen, bijvoorbeeld ten gevolge van koersschommelingen of wisselrisico’s.
B14: Algemene financiële kennis
B15: =IF('random simulaties'!O2<0.33,"U heeft weinig algemene financiële kennis.",IF('random simulaties'!O2<0.66,"U heeft een matige algemene financiële kennis.","U heeft een grote algemene financiële kennis.")) -> U heeft een matige algemene financiële kennis.
B16: Productkennis
B17: =IF(OR(simulation!$H$17="x",simulation!$H$18="x",simulation!$H$19="x",simulation!$H$24="x"),"U kent volgende spaar- en beleggingsverzekeringen:","U beschikt niet over kennis over spaar- en beleggingsverzekeringen") -> U beschikt niet over kennis over spaar- en beleggingsverzekeringen | I17: =IF('random simulaties'!$H$10="x","tak 21-verzekeringen"," ") -> 
I18: =IF('random simulaties'!$H$11="x","tak 23-verzekeringen zonder kapitaalsbescherming"," ") -> 
I19: =IF('random simulaties'!$H$12="x","tak 23-verzekeringen met kapitaalsbescherming"," ") -> 
I20: =IF('random simulaties'!$H$13="x","tak 26-kapitalisatieverrichtingen"," ") -> 
B21: U kent volgende andere financiële producten: | I21: =IF('random simulaties'!H18=" "," ",'random simulaties'!H18) -> 0
B22: Productervaring
B23: =IF(OR(simulation!$H$25="x",simulation!$H$26="x",simulation!$H$27="x",simulation!$H$32="x"),"U heeft belegd in volgende spaar- en beleggingsverzekeringen:","U heeft nog niet belegd in spaar- en beleggingsverzekeringen.") -> U heeft nog niet belegd in spaar- en beleggingsverzekeringen. | I23: =IF('random simulaties'!$H$14="x","tak 21-verzekeringen"," ") -> 
I24: =IF('random simulaties'!$H$15="x","tak 23-verzekeringen zonder kapitaalsbescherming"," ") -> 
I25: =IF('random simulaties'!$H$16="x","tak 23-verzekeringen met kapitaalsbescherming"," ") -> 
I26: =IF('random simulaties'!$H$17="x","tak 26-kapitalisatieverrichtingen"," ") -> 
B27: U heeft belegd in volgende andere financiële producten: | I27: =IF('random simulaties'!H19=" "," ",'random simulaties'!H19) -> 0
B29: Bijkomende toelichting
B30: Hier dient de specifieke motivering te worden ingevuld, wanneer wordt afgeweken van bovenstaande scoring of deze wordt aangepast.
B32: Uw financiële situatie
B43: Uw algemene financiële situatie
B44: =IF('random simulaties'!O7<0.33,"U heeft weinig financiële middelen om te investeren.",IF('random simulaties'!O7<0.66,"U heeft redelijk wat financiële middelen om te investeren.","U heeft ruime financiële mogelijkheden om te investeren.")) -> U heeft weinig financiële middelen om te investeren.
B45: U verwacht dat uw financiële situatie in de toekomst | H45: =IF('random simulaties'!L41=0,"in negatieve zin zal wijzigen.",IF('random simulaties'!L41=50,"niet zal wijzigen.","in positieve zin zal wijzigen.")) -> in positieve zin zal wijzigen.
B46: Het te investeren bedrag vertegenwoordigt …………… | G46: percent van het totale roerend vermogen
B47: Bijkomende toelichting
B48: Hier dient de specifieke motivering te worden ingevuld, wanneer het noodzakelijk wordt geacht om bijkomende toelichting te geven bij de financiële situatie van de klant.
B50: Uw spaar- en beleggingsdoelstellingen
B61: Uw algemene doelstellingen
B62: Uw belangrijkste spaar- of beleggingsdoelstelling is | H62: =IF('random simulaties'!L45=0, "het streven naar een bedrag/vermogen voor een specifieke uitgave in de toekomst.",IF('random simulaties'!L45=87,"een algemene vermogensgroei.",IF('random simulaties'!L45=125,"inspelen op beursontwikkelingen.",IF('random simulaties'!L45=19,"een extra inkomen als aanvulling op zijn huidig inkomen.","een aanvulling op zijn toekomstig inkomen, bijvoorbeeld een aanvullend pensioen.")))) -> een algemene vermogensgroei.
B63: U heeft hiervoor een spaar- en/of beleggingshorizon van | H63: =IF('random simulaties'!L49=0, "ten hoogste 3 jaar.",IF('random simulaties'!L49=37,"ten hoogste 8 jaar.",IF('random simulaties'!L49=87,"ten hoogste 16 jaar.","meer dan 16 jaar"))) -> ten hoogste 16 jaar.
B64: Uw specifieke verlangens/behoeften
B65: U wenst geen/volgende aanvullende uitkering(en): | H65: (schrappen en/of aanvullen waar nodig)
B66: Bijkomende toelichting
B67: Hier dient de specifieke motivering te worden ingevuld, wanneer wordt afgeweken van bovenstaande scoring of deze wordt aangepast.
B69: Uw risicogevoeligheid
B90: =VLOOKUP('random simulaties'!F78,$R$3:$S$6,2) -> U geeft de voorkeur aan aangroei van het vermogen zonder daarbij blootgesteld te worden aan een al te hoog risico op waardedaling; U bent bereid enig risico te nemen om het rendement te verhogen, maar slechts in beperkte mate; Voor het grootste deel van uw vermogen streeft u naar sparen en beleggen met weinig schommelingen en een stabiel rendement.
B93: Bijkomende toelichting
B94: Hier dient de specifieke motivering te worden ingevuld, wanneer wordt afgeweken van bovenstaande scoring of deze wordt aangepast.

Sheet invoerresultaten (hidden)
A1: x
